fUSD/lending_fUSD_20250530
["ID","MTS","AMOUNT","RATE_DAILY","PERIOD"]
[363106645,1748581838847,-1176.17,0.00021917,2]
[363106646,1748581838857,-835.58,0.00021917,2]
[363106647,1748581838867,-648.31,0.00021917,2]
[363106648,1748581838877,-298.17,0.00021917,2]
[363106649,1748581838888,-420.0,0.00021917,2]
[363106650,1748581838900,-923.21,0.00021917,2]
[363106651,1748581838910,-420.0,0.00021917,2]
[363106652,1748581838920,-420.0,0.00021917,2]
[363106653,1748581838930,-579.88,0.00021917,2]
[363106654,1748581838942,-815.83,0.00021917,2]
[363106655,1748581838952,-420.0,0.00021917,2]
[363106656,1748581838963,-420.0,0.00021917,2]
[363106657,1748581838975,-420.0,0.00021917,2]
[363106658,1748581838984,-658.09,0.00021917,2]
[363106659,1748581838994,-420.0,0.00021917,2]
[363106660,1748581839002,-151.0,0.00021917,2]
[363106661,1748581839011,-420.0,0.00021917,2]
[363106662,1748581839020,-690.79,0.00021917,2]
[363106663,1748581839029,-1114.43,0.00021917,2]
[363106664,1748581839038,-179.690675,0.00021917,2]
[363106665,1748581839047,-420.0,0.00021917,2]
[363106666,1748581839056,-500.87,0.00021917,2]
[363106667,1748581839066,-303.11110677,0.00021917,2]
[363106668,1748581839076,-420.0,0.00021917,2]
[363106669,1748581839086,-566.77051203,0.00021917,2]
[363106670,1748581839095,-420.0,0.00021917,2]
[363106671,1748581839104,-602.15,0.00021917,2]
[363106672,1748581839113,-420.0,0.00021917,2]
[363106673,1748581839122,-1324.81,0.00021917,2]
[363106674,1748581839131,-1559.0,0.00021917,2]
[363106675,1748581839140,-420.0,0.00021917,2]
[363106676,1748581839150,-1197.83,0.00021917,2]
[363106677,1748581839159,-420.0,0.00021917,2]
[363106678,1748581839169,-420.0,0.00021917,2]
[363106679,1748581839178,-180.69343018,0.00021917,2]
[363106680,1748581839187,-486.82,0.00021917,2]
[363106681,1748581839197,-420.0,0.00021917,2]
[363106682,1748581839206,-420.0,0.00021917,2]
[363106683,1748581839215,-632.18,0.00021917,2]
[363106684,1748581839224,-420.0,0.00021917,2]
[363106685,1748581839233,-714.04,0.00021917,2]
[363106686,1748581839242,-791.81,0.00021917,2]
[363106687,1748581839251,-1707.39,0.00021917,2]
[363106688,1748581839260,-528.62,0.00021917,2]
[363106689,1748581839269,-1103.5,0.00021917,2]
[363106690,1748581839278,-587.13,0.00021917,2]
[363106691,1748581839288,-420.0,0.00021917,2]
[363106692,1748581839298,-287.4640539,0.00021917,2]
[363106693,1748581839307,-420.0,0.00021917,2]
[363106694,1748581839317,-420.0,0.00021917,2]
[363106695,1748581839327,-420.0,0.00021917,2]
[363106696,1748581839336,-885.33,0.00021917,2]
[363106697,1748581839346,-490.28,0.00021917,2]
[363106698,1748581839356,-540.37,0.00021917,2]
[363106699,1748581839366,-1168.41,0.00021917,2]
[363106700,1748581839375,-479.59,0.00021917,2]
[363106701,1748581839385,-420.0,0.00021917,2]
[363106702,1748581839394,-151.0,0.00021917,2]
[363106703,1748581839404,-420.0,0.00021917,2]
[363106704,1748581839413,-1366.57,0.00021917,2]
[363106705,1748581839423,-420.0,0.00021917,2]
[363106706,1748581839432,-492.48606614,0.00021917,2]
[363106707,1748581839441,-1140.48,0.00021917,2]
[363106708,1748581839450,-420.0,0.00021917,2]
[363106709,1748581839459,-159.81320633,0.00021917,2]
[363106710,1748581839468,-519.99,0.00021917,2]
[363106711,1748581839477,-976.24,0.00021917,2]
[363106712,1748581839487,-638.67,0.00021917,2]
[363106713,1748581839496,-420.0,0.00021917,2]
[363106714,1748581839505,-420.0,0.00021917,2]
[363106715,1748581839515,-420.0,0.00021917,2]
[363106716,1748581839525,-420.0,0.00021917,2]
[363106717,1748581839535,-468.44,0.00021917,2]
[363106718,1748581839545,-934.57,0.00021917,2]
[363106719,1748581839554,-420.0,0.00021917,2]
[363106720,1748581839564,-420.0,0.00021917,2]
[363106721,1748581839574,-667.06,0.00021917,2]
[363106722,1748581839584,-420.0,0.00021917,2]
[363106723,1748581839594,-420.0,0.00021917,2]
[363106724,1748581839604,-420.0,0.00021917,2]
[363106725,1748581839613,-151.0,0.00021917,2]
[363106726,1748581839623,-521.81,0.00021917,2]
[363106727,1748581839633,-420.0,0.00021917,2]
[363106728,1748581839643,-522.4,0.00021917,2]
[363106729,1748581839652,-645.44,0.00021917,2]
[363106730,1748581839661,-898.97,0.00021917,2]
[363106731,1748581839671,-420.0,0.00021917,2]
[363106732,1748581839681,-151.0,0.00021917,2]
[363106733,1748581839691,-420.0,0.00021917,2]
[363106734,1748581839701,-420.0,0.00021917,2]
[363106735,1748581839711,-692.93,0.00021917,2]
[363106736,1748581839720,-708.8,0.00021917,2]
[363106737,1748581839730,-653.86,0.00021917,2]
[363106738,1748581839740,-768.24,0.00021917,2]
[363106739,1748581839750,-424.17,0.00021917,2]
[363106740,1748581839759,-420.0,0.00021917,2]
[363106741,1748581839768,-1070.18,0.00021917,2]
[363106742,1748581839777,-399.19044961,0.00021917,2]
[363106743,1748581839786,-463.71,0.00021917,2]
[363106744,1748581839795,-464.43966133,0.00021917,2]
[363106745,1748581839804,-420.0,0.00021917,2]
[363106746,1748581839813,-1402.95,0.00021917,2]
[363106747,1748581839823,-420.0,0.00021917,2]
[363106749,1748581839832,-2054.75,0.00021917,2]
[363106751,1748581839842,-381.1673508,0.00021917,2]
[363106753,1748581839850,-517.46,0.00021917,2]
[363106754,1748581839860,-420.0,0.00021917,2]
[363106755,1748581839871,-420.0,0.00021917,2]
[363106756,1748581839880,-420.0,0.00021917,2]
[363106757,1748581839891,-472.77,0.00021917,2]
[363106759,1748581839902,-505.47,0.00021917,2]
[363106760,1748581839911,-420.0,0.00021917,2]
[363106762,1748581839920,-420.0,0.00021917,2]
[363106764,1748581839929,-420.0,0.00021917,2]
[363106766,1748581839940,-420.0,0.00021917,2]
[363106768,1748581839949,-1089.27,0.00021917,2]
[363106769,1748581839958,-733.72,0.00021917,2]
[363106770,1748581839967,-420.0,0.00021917,2]
[363106771,1748581839978,-420.0,0.00021917,2]
[363106772,1748581839987,-1490.2,0.00021917,2]
[363106773,1748581839995,-595.84,0.00021917,2]
[363106774,1748581840004,-572.82,0.00021917,2]
[363106775,1748581840013,-420.0,0.00021917,2]
[363106777,1748581840023,-420.0,0.00021917,2]
[363106778,1748581840032,-554.84,0.00021917,2]
[363106779,1748581840041,-2474.64,0.00021917,2]
[363106780,1748581840051,-1380.32,0.00021917,2]
[363106781,1748581840060,-420.0,0.00021917,2]
[363106782,1748581840071,-537.81,0.00021917,2]
[363106784,1748581840081,-420.0,0.00021917,2]
[363106786,1748581840090,-420.0,0.00021917,2]
[363106788,1748581840099,-420.0,0.00021917,2]
[363106790,1748581840108,-431.1,0.00021917,2]
[363106791,1748581840118,-420.0,0.00021917,2]
[363106792,1748581840127,-876.43,0.00021917,2]
[363106794,1748581840135,-420.0,0.00021917,2]
[363106796,1748581840144,-420.0,0.00021917,2]
[363106798,1748581840154,-420.0,0.00021917,2]
[363106800,1748581840163,-420.0,0.00021917,2]
[363106803,1748581840171,-286.34003844,0.00021917,2]
[363106805,1748581840182,-420.0,0.00021917,2]
[363106807,1748581840191,-420.0,0.00021917,2]
[363106809,1748581840201,-590.09,0.00021917,2]
[363106811,1748581840210,-420.0,0.00021917,2]
[363106813,1748581840220,-420.0,0.00021917,2]
[363106815,1748581840229,-420.0,0.00021917,2]
[363106817,1748581840239,-533.46,0.00021917,2]
[363106818,1748581840247,-1271.78,0.00021917,2]
[363106820,1748581840255,-422.95109081,0.00021917,2]
[363106822,1748581840262,-420.0,0.00021917,2]
[363106824,1748581840269,-420.0,0.00021917,2]
[363106826,1748581840278,-1583.22,0.00021917,2]
[363106828,1748581840287,-190.915516,0.00021917,2]
[363106830,1748581840296,-1188.08,0.00021917,2]
[363106832,1748581840306,-465.73416401,0.00021917,2]
[363106834,1748581840315,-420.0,0.00021917,2]
[363106836,1748581840326,-420.0,0.00021917,2]
[363106838,1748581840336,-994.28,0.00021917,2]
[363106840,1748581840346,-420.0,0.00021917,2]
[363106842,1748581840355,-420.0,0.00021917,2]
[363106844,1748581840365,-477.51,0.00021917,2]
[363106846,1748581840375,-420.0,0.00021917,2]
[363106849,1748581840386,-808.77,0.00021917,2]
[363106851,1748581840396,-1486.58,0.00021917,2]
[363106853,1748581840405,-1049.79,0.00021917,2]
[363106855,1748581840415,-280.031112,0.00021917,2]
[363106857,1748581840425,-492.61,0.00021917,2]
[363106859,1748581840434,-420.0,0.00021917,2]
[363106861,1748581840443,-595.6,0.00021917,2]
[363106863,1748581840453,-502.03639381,0.00021917,2]
[363106865,1748581840462,-420.0,0.00021917,2]
[363106867,1748581840471,-420.0,0.00021917,2]
[363106869,1748581840481,-280.031112,0.00021917,2]
[363106871,1748581840490,-484.2056068,0.00021917,2]
[363106873,1748581840499,-420.0,0.00021917,2]
[363106875,1748581840509,-420.0,0.00021917,2]
[363106877,1748581840518,-420.0,0.00021917,2]
[363106879,1748581840528,-496.64,0.00021917,2]
[363106881,1748581840537,-420.0,0.00021917,2]
[363106883,1748581840547,-1886.86,0.00021917,2]
[363106886,1748581840557,-1752.64,0.00021917,2]
[363106887,1748581840566,-420.0,0.00021917,2]
[363106890,1748581840577,-192.42654376,0.00021917,2]
[363106892,1748581840587,-1184.2,0.00021917,2]
[363106894,1748581840597,-420.0,0.00021917,2]
[363106896,1748581840606,-420.0,0.00021917,2]
[363106898,1748581840616,-420.0,0.00021917,2]
[363106900,1748581840625,-420.0,0.00021917,2]
[363106902,1748581840635,-420.0,0.00021917,2]
[363106904,1748581840644,-564.56,0.00021917,2]
[363106906,1748581840654,-420.0,0.00021917,2]
[363106908,1748581840663,-944.35,0.00021917,2]
[363106909,1748581840673,-420.0,0.00021917,2]
[363106910,1748581840683,-735.39,0.00021917,2]
[363106913,1748581840693,-420.0,0.00021917,2]
[363106916,1748581840702,-840.26,0.00021917,2]
[363106919,1748581840711,-420.0,0.00021917,2]
[363106922,1748581840721,-420.0,0.00021917,2]
[363106925,1748581840730,-420.0,0.00021917,2]
[363106928,1748581840740,-426.05,0.00021917,2]
[363106931,1748581840749,-151.0,0.00021917,2]
[363106934,1748581840759,-1287.69,0.00021917,2]
[363106937,1748581840768,-1018.81,0.00021917,2]
[363106940,1748581840778,-420.0,0.00021917,2]
[363106943,1748581840788,-483.31,0.00021917,2]
[363106946,1748581840798,-530.41,0.00021917,2]
[363106949,1748581840807,-1312.13,0.00021917,2]
[363106952,1748581840817,-153.978837,0.00021917,2]
[363106955,1748581840827,-506.34,0.00021917,2]
[363106957,1748581840836,-420.0,0.00021917,2]
[363106959,1748581840845,-420.0,0.00021917,2]
[363106961,1748581840855,-151.0,0.00021917,2]
[363106963,1748581840865,-506.21,0.00021917,2]
[363106965,1748581840874,-925.73,0.00021917,2]
[363106967,1748581840883,-562.58,0.00021917,2]
[363106969,1748581840896,-504.21,0.00021917,2]
[363106971,1748581840906,-565.11,0.00021917,2]
[363106973,1748581840916,-420.0,0.00021917,2]
[363106975,1748581840925,-420.0,0.00021917,2]
[363106977,1748581840937,-420.0,0.00021917,2]
[363106979,1748581840946,-521.58,0.00021917,2]
[363106981,1748581840956,-7989.17,0.00021917,2]
[363106983,1748581840965,-1076.77,0.00021917,2]
[363106985,1748581840976,-420.0,0.00021917,2]
[363106987,1748581840985,-420.0,0.00021917,2]
[363106989,1748581840995,-420.0,0.00021917,2]
[363106991,1748581841005,-480.71,0.00021917,2]
[363106993,1748581841015,-1365.98,0.00021917,2]
[363106995,1748581841024,-676.29,0.00021917,2]
[363106997,1748581841034,-420.0,0.00021917,2]
[363106999,1748581841043,-776.14,0.00021917,2]
[363107002,1748581841053,-420.0,0.00021917,2]
[363107004,1748581841062,-512.65235275,0.00021917,2]
[363107006,1748581841072,-785.3,0.00021917,2]
[363107008,1748581841081,-732.78,0.00021917,2]
[363107039,1748581841334,-420.0,0.00021917,2]
[363107043,1748581841383,-624.19,0.00021917,2]
[363107045,1748581841394,-420.0,0.00021917,2]
[363107047,1748581841404,-466.99,0.00021917,2]
[363107048,1748581841413,-2263.5,0.00021917,2]
[363107049,1748581841423,-514.55,0.00021917,2]
[363107050,1748581841433,-420.0,0.00021917,2]
[363107051,1748581841442,-420.0,0.00021917,2]
[363107052,1748581841452,-1337.86,0.00021917,2]
[363107053,1748581841462,-420.0,0.00021917,2]
[363107054,1748581841471,-917.1,0.00021917,2]
[363107055,1748581841480,-566.87,0.00021917,2]
[363107056,1748581841490,-527.22,0.00021917,2]
[363107057,1748581841500,-2649.93,0.00021917,2]
[363107058,1748581841510,-420.0,0.00021917,2]
[363107059,1748581841519,-1112.24,0.00021917,2]
[363107060,1748581841529,-696.53,0.00021917,2]
[363107061,1748581841539,-420.0,0.00021917,2]
[363107062,1748581841548,-957.14,0.00021917,2]
[363107063,1748581841558,-877.05,0.00021917,2]
[363107064,1748581841568,-502.88003927,0.00021917,2]
[363107065,1748581841578,-500.0,0.00021917,2]
[363107066,1748581841587,-464.18,0.00021917,2]
[363107067,1748581841597,-1633.27,0.00021917,2]
[363107068,1748581841607,-674.33,0.00021917,2]
[363107069,1748581841616,-3384.38,0.00021917,2]
[363107070,1748581841626,-420.0,0.00021917,2]
[363107071,1748581841636,-420.0,0.00021917,2]
[363107072,1748581841646,-2780.31,0.00021917,2]
[363107073,1748581841656,-9084.86,0.00021917,2]
[363107074,1748581841666,-1353.27,0.00021917,2]
[363107075,1748581841676,-420.0,0.00021917,2]
[363107076,1748581841686,-760.22,0.00021917,2]
[363107077,1748581841696,-1450.36,0.00021917,2]
[363107078,1748581841705,-486.36,0.00021917,2]
[363107079,1748581841715,-3445.8,0.00021917,2]
[363107080,1748581841725,-462.63,0.00021917,2]
[363107081,1748581841735,-1677.91,0.00021917,2]
[363107082,1748581841744,-2513.8,0.00021917,2]
[363107083,1748581841754,-1011.58,0.00021917,2]
[363107084,1748581841764,-1196.17,0.00021917,2]
[363107085,1748581841774,-277.13366348,0.00021917,2]
[363107086,1748581841784,-1130.05,0.00021917,2]
[363107087,1748581841794,-456.98,0.00021917,2]
[363107088,1748581841804,-140583.55,0.00021917,2]
[363107089,1748581841816,-8037.1,0.00021917,2]
[363107090,1748581841836,-2173.134396,0.00021917,2]
[363107091,1748581841846,-1555.57,0.00021917,2]
[363107092,1748581841857,-420.0,0.00021917,2]
[363107093,1748581841867,-724.83,0.00021917,2]
[363107094,1748581841876,-420.0,0.00021917,2]
[363107095,1748581841886,-558.73,0.00021917,2]
[363107096,1748581841898,-2173.134396,0.00021917,2]
[363107097,1748581841908,-521.29,0.00021917,2]
[363107098,1748581841918,-256.8506503,0.00021917,2]
[363107099,1748581841927,-943.17,0.00021917,2]
[363107100,1748581841938,-500.0,0.00021917,2]
[363107101,1748581841948,-500.0,0.00021917,2]
[363107102,1748581841957,-500.0,0.00021917,2]
[363107103,1748581841966,-10179.48,0.00021917,2]
[363107104,1748581841977,-457.53,0.00021917,2]
[363107105,1748581841987,-420.0,0.00021917,2]
[363107106,1748581841996,-420.0,0.00021917,2]
[363107107,1748581842005,-420.0,0.00021917,2]
[363107108,1748581842015,-2052.62,0.00021917,2]
[363107109,1748581842023,-1103.66,0.00021917,2]
[363107110,1748581842033,-1488.61,0.00021917,2]
[363107111,1748581842042,-151.0,0.00021917,2]
[363107112,1748581842051,-612.39,0.00021917,2]
[363107113,1748581842060,-420.0,0.00021917,2]
[363107114,1748581842071,-612.9,0.00021917,2]
[363107115,1748581842081,-1765.94,0.00021917,2]
[363107116,1748581842090,-420.0,0.00021917,2]
[363107117,1748581842099,-1326.65,0.00021917,2]
[363107118,1748581842109,-2779.69,0.00021917,2]
[363107119,1748581842118,-935.41,0.00021917,2]
[363107120,1748581842127,-1854.23,0.00021917,2]
[363107121,1748581842137,-426.09,0.00021917,2]
[363107122,1748581842147,-331.220971,0.00021917,2]
[363107123,1748581842157,-331.220971,0.00021917,2]
[363107124,1748581842167,-1451.19,0.00021917,2]
[363107125,1748581842177,-792.09,0.00021917,2]
[363107126,1748581842187,-469.12,0.00021917,2]
[363107127,1748581842197,-11233.52,0.00021917,2]
[363107128,1748581842208,-23455.96,0.00021917,2]
[363107129,1748581842217,-3213.99,0.00021917,2]
[363107130,1748581842227,-5578.72,0.00021917,2]
[363107131,1748581842237,-151.0,0.00021917,2]
[363107132,1748581842247,-151.0,0.00021917,2]
[363107133,1748581842256,-151.0,0.00021917,2]
[363107134,1748581842266,-908.93,0.00021917,2]
[363107135,1748581842275,-1440.14,0.00021917,2]
[363107136,1748581842284,-1220.15,0.00021917,2]
[363107137,1748581842294,-613.97,0.00021917,2]
[363107138,1748581842303,-420.0,0.00021917,2]
[363107139,1748581842313,-1489.02,0.00021917,2]
[363107140,1748581842323,-3359.57,0.00021917,2]
[363107141,1748581842333,-839.56,0.00021917,2]
[363107142,1748581842342,-151.0,0.00021917,2]
[363107143,1748581842351,-1327.67,0.00021917,2]
[363107144,1748581842361,-1352.44,0.00021917,2]
[363107145,1748581842370,-420.0,0.00021917,2]
[363107146,1748581842379,-704.57,0.00021917,2]
[363107147,1748581842388,-2788.27,0.00021917,2]
[363107148,1748581842400,-445.35,0.00021917,2]
[363107149,1748581842410,-1519.07,0.00021917,2]
[363107150,1748581842420,-420.0,0.00021917,2]
[363107151,1748581842429,-2585.77,0.00021917,2]
[363107152,1748581842439,-597.65,0.00021917,2]
[363107153,1748581842448,-1417.46,0.00021917,2]
[363107154,1748581842458,-4608.58,0.00021917,2]
[363107155,1748581842467,-909.52,0.00021917,2]
[363107156,1748581842476,-420.0,0.00021917,2]
[363107157,1748581842486,-420.0,0.00021917,2]
[363107158,1748581842496,-420.0,0.00021917,2]
[363107159,1748581842506,-1367.38,0.00021917,2]
[363107160,1748581842515,-420.0,0.00021917,2]
[363107161,1748581842525,-37023.16,0.00021917,2]
[363107162,1748581842534,-923.91,0.00021917,2]
[363107163,1748581842543,-1391.64,0.00021917,2]
[363107164,1748581842552,-716.63,0.00021917,2]
[363107165,1748581842562,-455.46,0.00021917,2]
[363107166,1748581842571,-312.09307271,0.00021917,2]
[363107167,1748581842580,-594.65,0.00021917,2]
[363107168,1748581842591,-4069.12,0.00021917,2]
[363107169,1748581842601,-1902.08,0.00021917,2]
[363107170,1748581842611,-420.0,0.00021917,2]
[363107171,1748581842620,-1250.3,0.00021917,2]
[363107172,1748581842630,-420.0,0.00021917,2]
[363107173,1748581842639,-420.0,0.00021917,2]
[363107174,1748581842648,-420.0,0.00021917,2]
[363107175,1748581842658,-420.0,0.00021917,2]
[363107176,1748581842667,-1407.27,0.00021917,2]
[363107177,1748581842677,-7146.87,0.00021917,2]
[363107178,1748581842687,-420.0,0.00021917,2]
[363107179,1748581842696,-566.38,0.00021917,2]
[363107180,1748581842705,-1682.0,0.00021917,2]
[363107181,1748581842715,-1045.51,0.00021917,2]
[363107182,1748581842724,-450.47,0.00021917,2]
[363107183,1748581842733,-2262.48,0.00021917,2]
[363107184,1748581842742,-1910.47,0.00021917,2]
[363107185,1748581842752,-491.49,0.00021917,2]
[363107186,1748581842761,-2234.9,0.00021917,2]
[363107187,1748581842771,-709.38,0.00021917,2]
[363107188,1748581842779,-1442.05,0.00021917,2]
[363107189,1748581842789,-705.87,0.00021917,2]
[363107190,1748581842798,-928.89,0.00021917,2]
[363107191,1748581842807,-420.0,0.00021917,2]
[363107192,1748581842816,-3689.12,0.00021917,2]
[363107193,1748581842827,-458.24,0.00021917,2]
[363107194,1748581842837,-1858.88,0.00021917,2]
[363107195,1748581842847,-420.0,0.00021917,2]
[363107196,1748581842856,-1094.01,0.00021917,2]
[363107197,1748581842867,-1248.52,0.00021917,2]
[363107198,1748581842876,-4027.13,0.00021917,2]
[363107199,1748581842887,-420.0,0.00021917,2]
[363107200,1748581842900,-571.02,0.00021917,2]
[363107201,1748581842910,-913.22,0.00021917,2]
[363107202,1748581842919,-420.0,0.00021917,2]
[363107203,1748581842929,-1583.98,0.00021917,2]
[363107204,1748581842939,-711.41,0.00021917,2]
[363107205,1748581842948,-270.11321727,0.00021917,2]
[363107206,1748581842957,-5426.31,0.00021917,2]
[363107207,1748581842967,-1140.36,0.00021917,2]
[363107208,1748581842976,-1057.91,0.00021917,2]
[363107209,1748581842986,-420.0,0.00021917,2]
[363107210,1748581842995,-880.13,0.00021917,2]
[363107212,1748581843004,-1018.72,0.00021917,2]
[363107213,1748581843014,-549.47,0.00021917,2]
[363107215,1748581843024,-711.2,0.00021917,2]
[363107217,1748581843034,-485.40147891,0.00021917,2]
[363107218,1748581843044,-459.43,0.00021917,2]
[363107219,1748581843053,-422.53,0.00021917,2]
[363107220,1748581843063,-3669.52,0.00021917,2]
[363107221,1748581843074,-694.17,0.00021917,2]
[363107222,1748581843086,-643.4,0.00021917,2]
[363107223,1748581843096,-2733.68,0.00021917,2]
[363107224,1748581843106,-7056.85,0.00021917,2]
[363107225,1748581843116,-3061.13,0.00021917,2]
[363107226,1748581843126,-1747.09,0.00021917,2]
[363107227,1748581843136,-1175.43,0.00021917,2]
[363107228,1748581843146,-420.0,0.00021917,2]
[363107229,1748581843156,-420.0,0.00021917,2]
[363107230,1748581843166,-420.0,0.00021917,2]
[363107231,1748581843176,-8466.27,0.00021917,2]
[363107232,1748581843186,-892.04,0.00021917,2]
[363107233,1748581843195,-2669.72,0.00021917,2]
[363107234,1748581843205,-1066.39,0.00021917,2]
[363107235,1748581843215,-420.0,0.00021917,2]
[363107236,1748581843224,-2854.15,0.00021917,2]
[363107237,1748581843237,-1760.59,0.00021917,2]
[363107238,1748581843247,-526.3482909,0.00021917,2]
[363107239,1748581843257,-420.0,0.00021917,2]
[363107240,1748581843267,-581.85,0.00021917,2]
[363107241,1748581843276,-420.0,0.00021917,2]
[363107242,1748581843286,-1631.0,0.00021917,2]
[363107243,1748581843296,-3565.03,0.00021917,2]
[363107244,1748581843305,-420.0,0.00021917,2]
[363107245,1748581843317,-1030.27,0.00021917,2]
[363107246,1748581843336,-420.0,0.00021917,2]
[363107247,1748581843347,-638.39,0.00021917,2]
[363107248,1748581843356,-1869.02,0.00021917,2]
[363107249,1748581843366,-4450.82,0.00021917,2]
[363107250,1748581843376,-1232.57,0.00021917,2]
[363107251,1748581843385,-420.0,0.00021917,2]
[363107252,1748581843395,-615.21,0.00021917,2]
[363107253,1748581843404,-10370.15,0.00021917,2]
[363107254,1748581843414,-581.89,0.00021917,2]
[363107255,1748581843423,-3517.61,0.00021917,2]
[363107256,1748581843433,-435.74,0.00021917,2]
[363107257,1748581843443,-1083.64,0.00021917,2]
[363107258,1748581843453,-915.18,0.00021917,2]
[363107259,1748581843462,-2893.92,0.00021917,2]
[363107260,1748581843477,-848.9,0.00021917,2]
[363107261,1748581843492,-420.0,0.00021917,2]
[363107262,1748581843506,-1444.38,0.00021917,2]
[363107263,1748581843519,-420.0,0.00021917,2]
[363107264,1748581843531,-577.15,0.00021917,2]
[363107265,1748581843545,-1071.55,0.00021917,2]
[363107266,1748581843559,-1811.1,0.00021917,2]
[363107267,1748581843573,-3404.47,0.00021917,2]
[363107268,1748581843587,-632.7,0.00021917,2]
[363107269,1748581843600,-453.64,0.00021917,2]
[363107270,1748581843613,-420.0,0.00021917,2]
[363107271,1748581843624,-420.0,0.00021917,2]
[363107272,1748581843637,-5494.22,0.00021917,2]
[363107273,1748581843651,-503.29,0.00021917,2]
[363107274,1748581843664,-558.99,0.00021917,2]
[363107275,1748581843677,-420.0,0.00021917,2]
[363107276,1748581843693,-670.99,0.00021917,2]
[363107277,1748581843707,-2333.58,0.00021917,2]
[363107278,1748581843720,-22899.43,0.00021917,2]
[363107279,1748581843735,-2208.51,0.00021917,2]
[363107280,1748581843749,-3292.29,0.00021917,2]
[363107281,1748581843762,-1000.0,0.00021917,2]
[363107282,1748581843775,-883.83,0.00021917,2]
[363107283,1748581843789,-420.0,0.00021917,2]
[363107284,1748581843804,-1273.53,0.00021917,2]
[363107285,1748581843816,-715.89,0.00021917,2]
[363107286,1748581843830,-962.15,0.00021917,2]
[363107287,1748581843842,-423.78,0.00021917,2]
[363107288,1748581843853,-604.09,0.00021917,2]
[363107289,1748581843866,-437.15,0.00021917,2]
[363107290,1748581843882,-439.58,0.00021917,2]
[363107291,1748581843897,-420.0,0.00021917,2]
[363107292,1748581843908,-1049.15,0.00021917,2]
[363107293,1748581843919,-509.35,0.00021917,2]
[363107294,1748581843931,-2487.16,0.00021917,2]
[363107295,1748581843946,-420.0,0.00021917,2]
[363107296,1748581843959,-2788.03,0.00021917,2]
[363107297,1748581843969,-11308.58,0.00021917,2]
[363107298,1748581843981,-663.44,0.00021917,2]
[363107299,1748581843992,-703.09,0.00021917,2]
[363107300,1748581844003,-420.0,0.00021917,2]
[363107301,1748581844015,-5647.29,0.00021917,2]
[363107302,1748581844027,-420.0,0.00021917,2]
[363107303,1748581844038,-420.0,0.00021917,2]
[363107304,1748581844050,-989.74,0.00021917,2]
[363107305,1748581844063,-5922.53,0.00021917,2]
[363107306,1748581844075,-1031.38,0.00021917,2]
[363107307,1748581844087,-1739.16,0.00021917,2]
[363107308,1748581844099,-1438.87,0.00021917,2]
[363107309,1748581844110,-511.67,0.00021917,2]
[363107310,1748581844122,-581.11,0.00021917,2]
[363107311,1748581844133,-403.29972029,0.00021917,2]